fUST/lending_fUST_20250908
["ID","MTS","AMOUNT","RATE_DAILY","PERIOD"]
[384149433,1757272240705,-213.76333603,0.00013698,2]
[384149434,1757272240714,-480.0,0.00013698,2]
[384149436,1757272240724,-480.0,0.00013698,2]
[384149437,1757272240733,-493.39,0.00013698,2]
[384149438,1757272240743,-480.0,0.00013698,2]
[384149440,1757272240753,-480.0,0.00013698,2]
[384149442,1757272240761,-299.17254793,0.00013698,2]
[384149444,1757272240771,-480.0,0.00013698,2]
[384149446,1757272240780,-597.29,0.00013698,2]
[384149448,1757272240790,-480.0,0.00013698,2]
[384149450,1757272240799,-480.0,0.00013698,2]
[384149452,1757272240808,-685.67,0.00013698,2]
[384149454,1757272240818,-480.0,0.00013698,2]
[384149456,1757272240828,-153.56,0.00013698,2]
[384149458,1757272240837,-232.80349105,0.00013698,2]
[384149460,1757272240850,-247.19650895,0.00013698,2]
[384149462,1757272240859,-480.0,0.00013698,2]
[384149464,1757272240869,-389.97849103,0.00013698,2]
[384149466,1757272240880,-360.41257004,0.00013698,2]
[384149468,1757272240891,-28.08893893,0.00013698,2]
[384149470,1757272240900,-951.48,0.00013698,2]
[384149472,1757272240910,-480.0,0.00013698,2]
[384149474,1757272240919,-480.0,0.00013698,2]
[384149476,1757272240928,-480.0,0.00013698,2]
[384149478,1757272240938,-480.0,0.00013698,2]
[384149480,1757272240947,-480.0,0.00013698,2]
[384149482,1757272240957,-480.0,0.00013698,2]
[384149484,1757272240966,-480.0,0.00013698,2]
[384149485,1757272240975,-480.0,0.00013698,2]
[384149487,1757272240984,-480.0,0.00013698,2]
[384149489,1757272240994,-607.58974535,0.00013698,2]
[384149491,1757272241003,-480.0,0.00013698,2]
[384149493,1757272241013,-480.0,0.00013698,2]
[384149495,1757272241022,-480.0,0.00013698,2]
[384149497,1757272241032,-480.0,0.00013698,2]
[384149499,1757272241041,-480.0,0.00013698,2]
[384149501,1757272241050,-606.46,0.00013698,2]
[384149503,1757272241061,-480.0,0.00013698,2]
[384149505,1757272241070,-480.0,0.00013698,2]
[384149506,1757272241079,-480.0,0.00013698,2]
[384149508,1757272241089,-480.0,0.00013698,2]
[384149510,1757272241099,-480.0,0.00013698,2]
[384149512,1757272241109,-279.17,0.00013698,2]
[384149514,1757272241118,-480.0,0.00013698,2]
[384149516,1757272241128,-1150.05,0.00013698,2]
[384149518,1757272241137,-21782.59,0.00013698,2]
[384149520,1757272241146,-480.0,0.00013698,2]
[384149522,1757272241156,-229.79,0.00013698,2]
[384149524,1757272241165,-480.0,0.00013698,2]
[384149526,1757272241174,-1050.32,0.00013698,2]
[384149528,1757272241183,-480.0,0.00013698,2]
[384149530,1757272241193,-480.0,0.00013698,2]
[384149532,1757272241203,-480.0,0.00013698,2]
[384149534,1757272241212,-558.99,0.00013698,2]
[384149536,1757272241221,-480.0,0.00013698,2]
[384149538,1757272241230,-494.45,0.00013698,2]
[384149540,1757272241239,-480.0,0.00013698,2]
[384149541,1757272241248,-759.66,0.00013698,2]
[384149543,1757272241257,-480.0,0.00013698,2]
[384149545,1757272241266,-480.0,0.00013698,2]
[384149547,1757272241275,-480.0,0.00013698,2]
[384149549,1757272241285,-1878.78,0.00013698,2]
[384149551,1757272241294,-160.63,0.00013698,2]
[384149553,1757272241304,-1665.37,0.00013698,2]
[384149555,1757272241313,-480.0,0.00013698,2]
[384149557,1757272241323,-480.0,0.00013698,2]
[384149559,1757272241332,-480.0,0.00013698,2]
[384149561,1757272241340,-903.29,0.00013698,2]
[384149563,1757272241349,-480.0,0.00013698,2]
[384149565,1757272241358,-734.71,0.00013698,2]
[384149567,1757272241369,-480.0,0.00013698,2]
[384149569,1757272241380,-700.05,0.00013698,2]
[384149570,1757272241389,-1519.54,0.00013698,2]
[384149572,1757272241399,-480.0,0.00013698,2]
[384149574,1757272241408,-480.0,0.00013698,2]
[384149576,1757272241418,-1212.34,0.00013698,2]
[384149578,1757272241428,-480.0,0.00013698,2]
[384149580,1757272241437,-480.0,0.00013698,2]
[384149582,1757272241447,-480.0,0.00013698,2]
[384149584,1757272241457,-1587.51,0.00013698,2]
[384149586,1757272241466,-480.0,0.00013698,2]
[384149588,1757272241475,-812.56,0.00013698,2]
[384149590,1757272241485,-480.0,0.00013698,2]
[384149592,1757272241494,-480.0,0.00013698,2]
[384149594,1757272241504,-289.51,0.00013698,2]
[384149596,1757272241513,-480.0,0.00013698,2]
[384149598,1757272241522,-6646.348217,0.00013698,2]
[384150077,1757272246502,-1434.651783,0.00013698,2]
[384150079,1757272246512,-480.0,0.00013698,2]
[384150081,1757272246521,-480.0,0.00013698,2]
[384150083,1757272246530,-761.27,0.00013698,2]
[384150085,1757272246540,-308.26564551,0.00013698,2]
[384152095,1757272279413,151.86173678,0.00013598,2]
[384152096,1757272285394,168.34951694,0.00013597,2]
[384152097,1757272286375,500.0,0.00013597,2]
[384152098,1757272286562,500.0,0.00013597,2]
[384152099,1757272286603,500.0,0.00013597,2]
[384152100,1757272295247,300.0,0.0001356,2]
[384152101,1757272321931,3406.77199154,0.00013498,2]
[384152102,1757272403498,769.0933119,0.00012795,2]
[384152121,1757272805919,500.0,0.0001279,2]
[384152123,1757273021600,265.7580394,0.00013597,2]
[384152129,1757273161143,-300.0,0.00013696,2]
[384152130,1757273161170,-300.0,0.00013696,2]
[384152131,1757273161286,-3341.19337518,0.00013697,2]
[384152132,1757273171178,-300.0,0.00013696,2]
[384152133,1757273171213,-9400.01,0.00013697,2]
[384152134,1757273171297,-10000.01,0.00013697,2]
[384152135,1757273181139,-10000.01,0.00013697,2]
[384152136,1757273181276,-10000.01,0.00013697,2]
[384152160,1757273416906,185.120458,0.00013286,2]
[384152161,1757273417227,350.03967473,0.00013287,2]
[384152183,1757273432592,-277.94464223,0.00013696,2]
[384152223,1757273438399,-22.05535777,0.00013696,2]
[384152224,1757273438409,-846.90424221,0.00013697,2]
[384152225,1757273438427,-3806.87147216,0.00013697,2]
[384152226,1757273438438,-6108.92976352,0.00013697,2]
[384152227,1757273438462,-4091.84123567,0.00013697,2]
[384152228,1757273438471,-500.0,0.00013697,2]
[384152229,1757273438481,-500.0,0.00013697,2]
[384152230,1757273438491,-522.16368951,0.00013697,2]
[384152231,1757273438506,-437.46866558,0.00013697,2]
[384152232,1757273438516,-500.0,0.00013697,2]
[384152233,1757273438526,-500.0,0.00013697,2]
[384152234,1757273438536,-500.0,0.00013697,2]
[384152235,1757273438546,-500.0,0.00013697,2]
[384152236,1757273438556,-500.0,0.00013697,2]
[384152237,1757273438566,-500.0,0.00013697,2]
[384152238,1757273438575,-500.0,0.00013697,2]
[384152239,1757273438585,-500.0,0.00013697,2]
[384152240,1757273438595,-500.0,0.00013697,2]
[384152241,1757273438605,-500.0,0.00013697,2]
[384152242,1757273438615,-500.0,0.00013697,2]
[384152243,1757273438625,-500.0,0.00013697,2]
[384152244,1757273438635,-500.0,0.00013697,2]
[384152245,1757273438645,-500.0,0.00013697,2]
[384152246,1757273438655,-500.0,0.00013697,2]
[384152247,1757273438666,-500.0,0.00013697,2]
[384152248,1757273438676,-240.74869174,0.00013697,2]
[384152249,1757273438686,-500.0,0.00013697,2]
[384152250,1757273438697,-500.0,0.00013697,2]
[384152251,1757273438707,-500.0,0.00013697,2]
[384152252,1757273438717,-489.20240384,0.00013697,2]
[384152253,1757273438732,-10.79759616,0.00013697,2]
[384152254,1757273438743,-387.2439049,0.00013697,2]
[384152255,1757273438759,-112.7560951,0.00013697,2]
[384152256,1757273438770,-500.0,0.00013697,2]
[384152257,1757273438780,-500.0,0.00013697,2]
[384152258,1757273438790,-500.0,0.00013697,2]
[384152259,1757273438800,-500.0,0.00013697,2]
[384152260,1757273438809,-500.0,0.00013697,2]
[384152261,1757273438819,-500.0,0.00013697,2]
[384152262,1757273438829,-500.0,0.00013697,2]
[384152263,1757273438839,-390.65831663,0.00013697,2]
[384152264,1757273438849,-500.0,0.00013697,2]
[384152265,1757273438859,-500.0,0.00013697,2]
[384152266,1757273438868,-500.0,0.00013697,2]
[384152267,1757273438878,-500.0,0.00013697,2]
[384152268,1757273438888,-500.0,0.00013697,2]
[384152269,1757273438898,-500.0,0.00013697,2]
[384152270,1757273438908,-500.0,0.00013697,2]
[384152271,1757273438917,-500.0,0.00013697,2]
[384152272,1757273438927,-500.0,0.00013697,2]
[384152273,1757273438936,-500.0,0.00013697,2]
[384152274,1757273438945,-500.0,0.00013697,2]
[384152275,1757273438955,-500.0,0.00013697,2]
[384152276,1757273438964,-500.0,0.00013697,2]
[384152277,1757273438973,-500.0,0.00013697,2]
[384152278,1757273438983,-500.0,0.00013697,2]
[384152279,1757273438992,-500.0,0.00013697,2]
[384152280,1757273439001,-500.0,0.00013697,2]
[384152281,1757273439010,-500.0,0.00013697,2]
[384152282,1757273439019,-500.0,0.00013697,2]
[384152283,1757273439029,-500.0,0.00013697,2]
[384152284,1757273439038,-384.33678911,0.00013697,2]
[384152285,1757273439047,-500.0,0.00013697,2]
[384152286,1757273439056,-500.0,0.00013697,2]
[384152287,1757273439067,-500.0,0.00013697,2]
[384152288,1757273439076,-500.0,0.00013697,2]
[384152289,1757273439085,-475.00205666,0.00013697,2]
[384152327,1757273440836,-24.99794334,0.00013697,2]
[384152329,1757273440846,-500.0,0.00013697,2]
[384152331,1757273440855,-500.0,0.00013697,2]
[384152333,1757273440865,-500.0,0.00013697,2]
[384152335,1757273440874,-500.0,0.00013697,2]
[384152337,1757273440884,-500.0,0.00013697,2]
[384152339,1757273440893,-500.0,0.00013697,2]
[384152341,1757273440903,-500.0,0.00013697,2]
[384152343,1757273440912,-500.0,0.00013697,2]
[384152345,1757273440921,-500.0,0.00013697,2]
[384152347,1757273440931,-500.0,0.00013697,2]
[384152349,1757273440940,-500.0,0.00013697,2]
[384152351,1757273440948,-500.0,0.00013697,2]
[384152353,1757273440957,-500.0,0.00013697,2]
[384152355,1757273440966,-259.66595398,0.00013697,2]
[384152357,1757273440974,-157.52932422,0.00013697,2]
[384152359,1757273440982,-500.0,0.00013697,2]
[384152361,1757273440991,-500.0,0.00013697,2]
[384152362,1757273440998,-500.0,0.00013697,2]
[384152364,1757273441006,-500.0,0.00013697,2]
[384152366,1757273441016,-500.0,0.00013697,2]
[384152368,1757273441025,-500.0,0.00013697,2]
[384152370,1757273441034,-500.0,0.00013697,2]
[384152372,1757273441044,-500.0,0.00013697,2]
[384152374,1757273441054,-500.0,0.00013697,2]
[384152376,1757273441063,-251.59429334,0.00013697,2]
[384152378,1757273441074,-518.6895705,0.00013697,2]
[384152380,1757273441084,-165.9711364,0.00013697,2]
[384152382,1757273441093,-500.0,0.00013697,2]
[384152384,1757273441103,-500.0,0.00013697,2]
[384152386,1757273441115,-500.0,0.00013697,2]
[384152388,1757273441125,-578.59661463,0.00013697,2]
[384152390,1757273441135,-500.0,0.00013697,2]
[384152392,1757273441143,-500.0,0.00013697,2]
[384152394,1757273441153,-500.0,0.00013697,2]
[384152396,1757273441163,-500.0,0.00013697,2]
[384152398,1757273441172,-348.82903172,0.00013697,2]
[384152400,1757273441181,-215.46217034,0.00013697,2]
[384152402,1757273441190,-526.01,0.00013698,2]
[384152404,1757273441200,-480.0,0.00013698,2]
[384152406,1757273441209,-480.0,0.00013698,2]
[384152407,1757273441218,-480.0,0.00013698,2]
[384152409,1757273441227,-480.0,0.00013698,2]
[384152411,1757273441237,-480.0,0.00013698,2]
[384152413,1757273441246,-480.0,0.00013698,2]
[384152415,1757273441256,-480.0,0.00013698,2]
[384152417,1757273441265,-746.05,0.00013698,2]
[384152419,1757273441274,-538.51,0.00013698,2]
[384152421,1757273441284,-480.0,0.00013698,2]
[384152423,1757273441293,-480.0,0.00013698,2]
[384152425,1757273441302,-480.0,0.00013698,2]
[384152427,1757273441311,-572.41,0.00013698,2]
[384152429,1757273441321,-480.0,0.00013698,2]
[384152431,1757273441330,-657.1,0.00013698,2]
[384152433,1757273441339,-480.0,0.00013698,2]
[384152435,1757273441348,-480.0,0.00013698,2]
[384152437,1757273441357,-480.0,0.00013698,2]
[384152439,1757273441366,-480.0,0.00013698,2]
[384152441,1757273441375,-480.0,0.00013698,2]
[384152443,1757273441385,-214.46,0.00013698,2]
[384152445,1757273441394,-480.0,0.00013698,2]
[384152447,1757273441404,-480.0,0.00013698,2]
[384152449,1757273441413,-480.0,0.00013698,2]
[384152450,1757273441422,-480.0,0.00013698,2]
[384152452,1757273441432,-480.0,0.00013698,2]
[384152455,1757273441441,-480.0,0.00013698,2]
[384152458,1757273441450,-480.0,0.00013698,2]
[384152461,1757273441460,-480.0,0.00013698,2]
[384152464,1757273441470,-480.0,0.00013698,2]
[384152467,1757273441480,-480.0,0.00013698,2]
[384152469,1757273441490,-996.75,0.00013698,2]
[384152470,1757273441498,-480.0,0.00013698,2]
[384152471,1757273441507,-480.0,0.00013698,2]
[384152472,1757273441516,-480.0,0.00013698,2]
[384152473,1757273441526,-480.0,0.00013698,2]
[384152474,1757273441535,-480.0,0.00013698,2]
[384152475,1757273441544,-169.85,0.00013698,2]
[384152476,1757273441553,-480.0,0.00013698,2]
[384152477,1757273441562,-480.0,0.00013698,2]
[384152478,1757273441571,-480.0,0.00013698,2]
[384152479,1757273441581,-480.0,0.00013698,2]
[384152480,1757273441590,-480.0,0.00013698,2]
[384152481,1757273441600,-486.25,0.00013698,2]
[384152482,1757273441609,-480.0,0.00013698,2]
[384152483,1757273441618,-604.76,0.00013698,2]
[384152484,1757273441627,-480.0,0.00013698,2]
[384152485,1757273441636,-480.0,0.00013698,2]
[384152486,1757273441646,-480.0,0.00013698,2]
[384152487,1757273441656,-500.3,0.00013698,2]
[384152489,1757273441666,-480.0,0.00013698,2]
[384152491,1757273441676,-480.0,0.00013698,2]
[384152493,1757273441685,-2734.34,0.00013698,2]
[384152495,1757273441695,-533.1,0.00013698,2]
[384152497,1757273441704,-493.85,0.00013698,2]
[384152499,1757273441715,-21037.3,0.00013698,2]
[384152501,1757273441724,-181.02,0.00013698,2]
[384152503,1757273441733,-330.20619818,0.00013698,2]
[384152516,1757273441743,-1787.29,0.00013698,2]
[384152519,1757273441861,-480.0,0.00013698,2]
[384152520,1757273441871,-480.0,0.00013698,2]
[384152522,1757273441880,-480.0,0.00013698,2]
[384152524,1757273441890,-1038.07,0.00013698,2]
[384152526,1757273441899,-730.73,0.00013698,2]
[384152528,1757273441909,-734.47,0.00013698,2]
[384152530,1757273441918,-480.0,0.00013698,2]
[384152532,1757273441928,-480.0,0.00013698,2]
[384152534,1757273441937,-1548.82,0.00013698,2]
[384152536,1757273441947,-1456.22,0.00013698,2]
[384152538,1757273441956,-762.57,0.00013698,2]
[384152540,1757273441966,-480.0,0.00013698,2]
[384152542,1757273441977,-480.0,0.00013698,2]
[384152544,1757273441987,-3420.62,0.00013698,2]
[384152546,1757273441996,-850.53,0.00013698,2]
[384152548,1757273442006,-480.0,0.00013698,2]
[384152550,1757273442015,-956.11,0.00013698,2]
[384152552,1757273442024,-480.0,0.00013698,2]
[384152554,1757273442034,-321.260043,0.00013698,2]
[384152556,1757273442043,-494.63,0.00013698,2]
[384152558,1757273442053,-480.0,0.00013698,2]
[384152560,1757273442062,-1859.14,0.00013698,2]
[384152562,1757273442071,-587.77,0.00013698,2]
[384152564,1757273442081,-822.76,0.00013698,2]
[384152566,1757273442091,-480.0,0.00013698,2]
[384152568,1757273442100,-899.4,0.00013698,2]
[384152569,1757273442111,-480.0,0.00013698,2]
[384152571,1757273442120,-480.0,0.00013698,2]
[384152573,1757273442129,-480.0,0.00013698,2]
[384152575,1757273442138,-340.64065777,0.00013698,2]
[384152577,1757273442147,-480.0,0.00013698,2]
[384152579,1757273442157,-480.0,0.00013698,2]
[384152581,1757273442166,-1255.97,0.00013698,2]
[384152583,1757273442175,-575.7,0.00013698,2]
[384152585,1757273442185,-480.0,0.00013698,2]
[384152587,1757273442194,-502.14,0.00013698,2]
[384152589,1757273442203,-480.0,0.00013698,2]
[384152590,1757273442212,-8150.2,0.00013698,2]
[384152592,1757273442221,-480.0,0.00013698,2]
[384152594,1757273442230,-2959.33,0.00013698,2]
[384152596,1757273442239,-2022.84312539,0.00013698,2]
[384152598,1757273442249,-510.15655216,0.00013698,2]
[384152600,1757273442258,-508.43,0.00013698,2]
[384152602,1757273442268,-5405.16,0.00013698,2]
[384152604,1757273442277,-604.08,0.00013698,2]
[384152606,1757273442286,-749.55,0.00013698,2]
[384152608,1757273442296,-521.79,0.00013698,2]
[384152610,1757273442306,-480.0,0.00013698,2]
[384152612,1757273442315,-2754.04,0.00013698,2]
[384152614,1757273442324,-480.0,0.00013698,2]
[384152616,1757273442333,-480.69313454,0.00013698,2]
[384152618,1757273442343,-2148.12,0.00013698,2]
[384152620,1757273442352,-480.0,0.00013698,2]
[384152622,1757273442362,-480.0,0.00013698,2]
[384152624,1757273442371,-1292.5,0.00013698,2]
[384152626,1757273442380,-308.44611443,0.00013698,2]
[384153017,1757273446686,-173.21507578,0.00013698,2]
[384153019,1757273446696,-637.94,0.00013698,2]
[384153021,1757273446705,-2104.45,0.00013698,2]
[384153023,1757273446715,-428.63451954,0.00013698,2]
[384153084,1757273447274,-51.36548046,0.00013698,2]
[384153086,1757273447284,-480.0,0.00013698,2]
[384153088,1757273447293,-480.0,0.00013698,2]
[384153090,1757273447303,-698.1,0.00013698,2]
[384153092,1757273447312,-470.08362675,0.00013698,2]
[384153100,1757273447355,-9.91637325,0.00013698,2]
[384153102,1757273447365,-494.6,0.00013698,2]
[384153104,1757273447375,-65.48362575,0.00013698,2]
[384153531,1757273506696,232.53828444,0.00013598,2]
[384153533,1757273616893,165.62025606,0.00013597,2]
[384153534,1757273618826,165.62025605,0.00013598,2]
[384153535,1757273620846,165.62025605,0.00013598,2]
[384153536,1757273643537,300.0,0.00013597,2]
[384153552,1757273673392,500.0,0.00013597,2]
[384153553,1757273673427,500.0,0.00013597,2]
[384153554,1757273673618,440.93478872,0.00013597,2]
[384153555,1757273673663,500.0,0.00013597,2]
[384153556,1757273673701,500.0,0.00013597,2]
[384153557,1757273673801,500.0,0.00013597,2]
[384153558,1757273673850,348.5511739,0.00013597,2]
[384153559,1757273673900,500.0,0.00013597,2]
[384153560,1757273673953,500.0,0.00013597,2]
[384153561,1757273702512,300.0,0.00013597,2]
[384153562,1757273703213,1200.0,0.00013597,2]
[384153565,1757273762376,300.0,0.00013597,2]
[384153566,1757273767198,313.64185664,0.00013597,2]
[384153567,1757273796393,267.74445371,0.00013598,2]
[384153568,1757273822360,300.0,0.00013597,2]
[384153569,1757273830308,1200.0,0.00013597,2]
[384153572,1757273882359,300.0,0.00013597,2]
[384153574,1757273942765,300.0,0.00013597,2]
[384153580,1757273992532,432.27695887,0.00012828,2]
[384153581,1757273992553,3638.48632543,0.00012828,2]
[384153582,1757274002695,300.0,0.00013597,2]
[384153583,1757274002737,300.0,0.00013597,2]
[384153585,1757274007132,1000.0,0.00013598,2]
[384153586,1757274007316,151.0,0.00013598,2]
[384153587,1757274007729,1000.0,0.00013598,2]
[384153588,1757274008371,1000.0,0.00013598,2]
[384153589,1757274008410,151.0,0.00013598,2]
[384153590,1757274008811,2459.52367457,0.00013598,2]
[384153591,1757274008854,10000.01,0.00013598,2]
[384153592,1757274008879,6832.69372233,0.00013598,2]
[384153593,1757274009000,1000.0,0.00013598,2]
[384153594,1757274009035,151.0,0.00013598,2]
[384153595,1757274009501,500.0,0.00013598,2]
[384153596,1757274009558,151.0,0.00013598,2]
[384153597,1757274009608,151.0,0.00013598,2]
[384153598,1757274009802,1000.0,0.00013598,2]
[384153599,1757274010107,151.0,0.00013598,2]
[384153600,1757274010138,63.31627767,0.00013598,2]
[384153601,1757274011318,300.0,0.00013597,2]
[384153602,1757274017025,-436.68372233,0.00013598,2]
[384153603,1757274017054,-151.0,0.00013598,2]
[384153604,1757274017082,-151.0,0.00013598,2]
[384153605,1757274017109,-151.0,0.00013598,2]
[384153606,1757274017138,-500.0,0.00013598,2]
[384153607,1757274017164,-151.0,0.00013598,2]
[384153608,1757274017191,-151.0,0.00013598,2]
[384153609,1757274017218,-151.0,0.00013598,2]
[384153610,1757274017245,-500.0,0.00013598,2]
[384153611,1757274017273,-151.0,0.00013598,2]
[384153612,1757274017302,-151.0,0.00013598,2]
[384153613,1757274017332,-151.0,0.00013598,2]
[384153614,1757274017361,-1000.0,0.00013598,2]
[384153615,1757274017388,-151.0,0.00013598,2]
[384153616,1757274017417,-500.0,0.00013598,2]
[384153617,1757274017445,-151.0,0.00013598,2]
[384153618,1757274017473,-151.0,0.00013598,2]
[384153619,1757274017797,-1000.0,0.00013598,2]
[384153620,1757274017829,-151.0,0.00013598,2]
[384153621,1757274017860,-500.0,0.00013598,2]
[384153622,1757274017891,-151.0,0.00013598,2]
[384153623,1757274017921,-151.0,0.00013598,2]
[384153624,1757274017951,-151.0,0.00013598,2]
[384153625,1757274017980,-1000.0,0.00013598,2]
[384153626,1757274018009,-151.0,0.00013598,2]
[384153627,1757274018036,-151.0,0.00013598,2]
[384153628,1757274018064,-151.0,0.00013598,2]
[384153629,1757274018093,-500.0,0.00013598,2]
[384153630,1757274018123,-886.01,0.00013598,2]
[384153636,1757274032070,244.18032221,0.00013597,2]
[384153637,1757274062867,300.0,0.00013597,2]
[384153638,1757274112380,178.77,0.00012329,2]
[384153639,1757274122847,300.0,0.00013597,2]
[384153640,1757274123081,893.85,0.00012329,2]
[384153642,1757274182750,300.0,0.00013597,2]
[384153644,1757274239271,278.06346138,0.00013498,2]
[384153645,1757274243336,300.0,0.00013597,2]
[384153648,1757274268318,376.19659508,0.00013462,2]
[384153649,1757274302238,300.0,0.00013597,2]
[384153650,1757274303229,814.0,0.00013597,2]
[384153653,1757274363000,300.0,0.00013597,2]
[384153655,1757274422728,300.0,0.00013597,2]
[384153657,1757274482947,300.0,0.00013597,2]
[384153658,1757274499786,243.30552876,0.00013572,2]
[384153661,1757274542542,189.20350243,0.00013497,2]
[384153662,1757274543016,300.0,0.00013597,2]
[384153693,1757274602439,300.0,0.00013597,2]
[384153694,1757274618424,318.82303346,0.0001319,2]
[384153795,1757274631945,-4438.10476624,0.00013598,2]
[384153797,1757274631957,-3855.32146968,0.00013598,2]
[384153799,1757274631969,-1880.000005,0.00013598,2]
[384153802,1757274631989,-664.44,0.00013598,2]
[384153805,1757274632002,-24304.05584237,0.00013598,2]
[384154250,1757274637730,-161831.21286682,0.00013598,2]
[384154251,1757274637740,-170.92622555,0.00013672,2]
[384154252,1757274637751,-500.0,0.00013673,2]
[384154253,1757274637760,-500.0,0.00013673,2]
[384154254,1757274637771,-500.0,0.00013673,2]
[384154256,1757274637780,-500.0,0.00013673,2]
[384154258,1757274637790,-500.0,0.00013673,2]
[384154260,1757274637800,-500.0,0.00013673,2]
[384154262,1757274637809,-500.0,0.00013673,2]
[384154264,1757274637818,-500.0,0.00013673,2]
[384154266,1757274637827,-500.0,0.00013673,2]
[384154268,1757274637836,-500.0,0.00013673,2]
[384154269,1757274637845,-500.0,0.00013673,2]
[384154271,1757274637854,-500.0,0.00013673,2]
[384154273,1757274637864,-503.70918573,0.00013673,2]
[384154274,1757274637873,-500.0,0.00013673,2]
[384154275,1757274637883,-500.0,0.00013673,2]
[384154276,1757274637893,-500.0,0.00013673,2]
[384154277,1757274637902,-500.0,0.00013673,2]
[384154278,1757274637911,-500.0,0.00013673,2]
[384154279,1757274637920,-500.0,0.00013673,2]
[384154280,1757274637930,-500.0,0.00013673,2]
[384154281,1757274637939,-500.0,0.00013673,2]
[384154282,1757274637948,-50000.0,0.00013673,2]
[384154283,1757274637959,-19292.2273969,0.0001369,2]
[384154284,1757274637968,-151.0,0.0001369,2]
[384154285,1757274637979,-151.0,0.0001369,2]
[384154286,1757274637988,-151.0,0.0001369,2]
[384154287,1757274637999,-151.0,0.0001369,2]
[384154288,1757274638011,-151.0,0.0001369,2]
[384154289,1757274638020,-151.0,0.0001369,2]
[384154290,1757274638030,-151.0,0.0001369,2]
[384154291,1757274638040,-151.0,0.0001369,2]
[384154292,1757274638050,-151.0,0.0001369,2]
[384154293,1757274638060,-250.0,0.0001369,2]
[384154294,1757274638070,-1000.0,0.0001369,2]
[384154295,1757274638081,-151.29036479,0.0001369,2]
[384154296,1757274638090,-181.08010149,0.0001369,2]
[384154297,1757274638100,-151.0,0.0001369,2]
[384154298,1757274638111,-250.0,0.0001369,2]
[384154299,1757274638126,-151.0,0.0001369,2]
[384154300,1757274638148,-1000.0,0.0001369,2]
[384154301,1757274638170,-151.0,0.0001369,2]
[384154302,1757274638179,-151.0,0.0001369,2]
[384154303,1757274638189,-250.0,0.0001369,2]
[384154304,1757274638198,-2105.41764886,0.0001369,2]
[384154305,1757274638208,-1000.0,0.0001369,2]
[384154306,1757274638217,-151.0,0.0001369,2]
[384154307,1757274638227,-151.0,0.0001369,2]
[384154308,1757274638236,-250.0,0.0001369,2]
[384154309,1757274638246,-1000.0,0.0001369,2]
[384154310,1757274638255,-151.0,0.0001369,2]
[384154311,1757274638264,-151.0,0.0001369,2]
[384154312,1757274638274,-151.0,0.0001369,2]
[384154313,1757274638285,-1000.0,0.0001369,2]
[384154314,1757274638297,-151.0,0.0001369,2]
[384154315,1757274638307,-151.0,0.0001369,2]